lending/lending_fUSD_20251016
["ID","MTS","AMOUNT","RATE_DAILY","PERIOD"]
[391557171,1760652640823,-151.0,0.00028,3]
[391557173,1760652640832,-151.0,0.00028,3]
[391557175,1760652640841,-151.0,0.00028,3]
[391557177,1760652640850,-151.0,0.00028,3]
[391557179,1760652640859,-151.0,0.00028,3]
[391557181,1760652640868,-151.0,0.00028,3]
[391557183,1760652640877,-151.0,0.00028,3]
[391557185,1760652640886,-151.0,0.00028,3]
[391557187,1760652640895,-151.0,0.00028,3]
[391557189,1760652640904,-151.0,0.00028,3]
[391557191,1760652640913,-151.0,0.00028,3]
[391557193,1760652640922,-151.0,0.00028,3]
[391557195,1760652640931,-151.0,0.00028,3]
[391557197,1760652640940,-151.0,0.00028,3]
[391557199,1760652640949,-151.0,0.00028,3]
[391557201,1760652640959,-151.0,0.00028,3]
[391557203,1760652640968,-151.0,0.00028,3]
[391557205,1760652640977,-151.0,0.00028,3]
[391557207,1760652640987,-151.0,0.00028,3]
[391557209,1760652640997,-151.0,0.00028,3]
[391557211,1760652641006,-151.0,0.00028,3]
[391557213,1760652641017,-151.0,0.00028,3]
[391557215,1760652641026,-151.0,0.00028,3]
[391557217,1760652641035,-151.0,0.00028,3]
[391557218,1760652641049,-151.0,0.00028,3]
[391557219,1760652641058,-151.0,0.00028,3]
[391557220,1760652641068,-151.0,0.00028,3]
[391557221,1760652641078,-151.0,0.00028,3]
[391557222,1760652641088,-151.0,0.00028,3]
[391557223,1760652641097,-151.0,0.00028,3]
[391557224,1760652641107,-151.0,0.00028,3]
[391557226,1760652641116,-151.0,0.00028,3]
[391557228,1760652641125,-151.0,0.00028,3]
[391557230,1760652641135,-151.0,0.00028,3]
[391557232,1760652641145,-151.0,0.00028,3]
[391557234,1760652641154,-151.0,0.00028,3]
[391557236,1760652641163,-151.0,0.00028,3]
[391557238,1760652641173,-151.0,0.00028,3]
[391557240,1760652641182,-151.0,0.00028,3]
[391557242,1760652641192,-151.0,0.00028,3]
[391557244,1760652641203,-151.0,0.00028,3]
[391557247,1760652641214,-151.0,0.00028,3]
[391557249,1760652641224,-151.0,0.00028,3]
[391557251,1760652641234,-151.0,0.00028,3]
[391557253,1760652641244,-151.0,0.00028,3]
[391557255,1760652641253,-151.0,0.00028,3]
[391557257,1760652641263,-151.0,0.00028,3]
[391557258,1760652641272,-151.0,0.00028,3]
[391557260,1760652641282,-151.0,0.00028,3]
[391557262,1760652641292,-151.0,0.00028,3]
[391557264,1760652641301,-151.0,0.00028,3]
[391557267,1760652641311,-151.0,0.00028,3]
[391557269,1760652641320,-151.0,0.00028,3]
[391557271,1760652641330,-151.0,0.00028,3]
[391557272,1760652641341,-151.0,0.00028,3]
[391557274,1760652641352,-151.0,0.00028,3]
[391557277,1760652641362,-216.65840854,0.00028,3]
[391557279,1760652641371,-151.0,0.00028,3]
[391557281,1760652641380,-151.0,0.00028,3]
[391557283,1760652641391,-151.0,0.00028,3]
[391557285,1760652641400,-151.0,0.00028,3]
[391557287,1760652641411,-151.0,0.00028,3]
[391557289,1760652641421,-151.0,0.00028,3]
[391557291,1760652641434,-151.0,0.00028,3]
[391557293,1760652641443,-151.0,0.00028,3]
[391557295,1760652641452,-151.0,0.00028,3]
[391557297,1760652641463,-151.0,0.00028,3]
[391557299,1760652641472,-151.0,0.00028,3]
[391557301,1760652641482,-151.0,0.00028,3]
[391557303,1760652641491,-151.0,0.00028,3]
[391557305,1760652641500,-151.0,0.00028,3]
[391557307,1760652641510,-151.0,0.00028,3]
[391557309,1760652641520,-151.0,0.00028,3]
[391557311,1760652641530,-151.0,0.00028,3]
[391557313,1760652641539,-151.0,0.00028,3]
[391557316,1760652641550,-151.0,0.00028,3]
[391557318,1760652641560,-151.0,0.00028,3]
[391557320,1760652641570,-151.0,0.00028,3]
[391557322,1760652641580,-151.0,0.00028,3]
[391557324,1760652641590,-153.44437881,0.00028,3]
[391557326,1760652641599,-151.0,0.00028,2]
[391557328,1760652641608,-175.21104769,0.00028,3]
[391557330,1760652641617,-151.0,0.00028,2]
[391557332,1760652641627,-1000.02300611,0.00028,2]
[391557334,1760652641637,-1500.0,0.00028,2]
[391557336,1760652641646,-1305.87977,0.00028,2]
[391557338,1760652641656,-18734.16,0.00028,7]
[391557340,1760652641666,-15000.0,0.00028,2]
[391557342,1760652641675,-4320.94963422,0.00028,3]
[391557344,1760652641685,-168.0,0.00028002,2]
[391557346,1760652641694,-161.43,0.00028017,2]
[391557348,1760652641703,-2364.0,0.00028037,2]
[391557351,1760652641714,-500.0,0.00028059,120]
[391557352,1760652641723,-156.61,0.00028065,15]
[391557354,1760652641733,-500.0,0.00028092,120]
[391557357,1760652641742,-151.18,0.00028097,7]
[391557359,1760652641752,-2000.0,0.000281,2]
[391557361,1760652641762,-161.74,0.00028102,2]
[391557363,1760652641771,-500.0,0.00028107,120]
[391557365,1760652641781,-4320.94963422,0.00028154,3]
[391557367,1760652641790,-2366.0,0.00028164,7]
[391557369,1760652641800,-156.61,0.00028165,15]
[391557371,1760652641810,-4320.94963422,0.00028199,3]
[391557373,1760652641823,-5269.14721479,0.000282,2]
[391557375,1760652641833,-161.65725691,0.00028243,2]
[391557377,1760652641843,-474.73,0.00028252,2]
[391557380,1760652641852,-474.73,0.00028252,2]
[391557382,1760652641862,-175.23,0.00028252,2]
[391557384,1760652641871,-169.45712011,0.00028253,4]
[391557386,1760652641881,-374.0,0.00028261,2]
[391557388,1760652641891,-156.61,0.00028265,15]
[391557390,1760652641900,-523.12,0.00028273,8]
[391557392,1760652641910,-500.0,0.00028289,120]
[391557394,1760652641923,-307.6442989,0.00028293,2]
[391557396,1760652641932,-230.18199034,0.00028356,7]
[391557398,1760652641942,-4320.94963422,0.00028357,3]
[391557400,1760652641951,-8641.89926844,0.00028361,3]
[391557402,1760652641961,-18072.8058348,0.00028361,3]
[391557405,1760652641972,-156.62833051,0.00028365,15]
[391557407,1760652641981,-4320.94963422,0.00028371,3]
[391557409,1760652641991,-4871.62,0.00028381,10]
[391557411,1760652642001,-2000.0,0.00028421,120]
[391557413,1760652642012,-168.0,0.00028436,2]
[391557415,1760652642023,-2364.0,0.00028466,7]
[391557417,1760652642032,-4320.94963422,0.0002849,3]
[391557419,1760652642042,-1500.0,0.000285,2]
[391557421,1760652642052,-4320.94963422,0.00028508,3]
[391557423,1760652642062,-1841.49,0.00028509,10]
[391557425,1760652642071,-5269.14721479,0.0002851,2]
[391557427,1760652642081,-523.12,0.00028547,9]
[391557429,1760652642091,-562.88,0.00028555,30]
[391557431,1760652642101,-161.65725691,0.00028592,2]
[391557433,1760652642110,-153.0,0.00028618,2]
[391557435,1760652642120,-168.0,0.00028624,7]
[391557437,1760652642130,-153.0,0.00028624,2]
[391557440,1760652642140,-18072.8058348,0.0002865,3]
[391557442,1760652642149,-166.32993521,0.0002866,2]
[391557444,1760652642159,-12962.8489027,0.0002866,3]
[391557446,1760652642169,-12962.8489027,0.0002867,3]
[391557448,1760652642179,-18072.8058348,0.0002867,3]
[391557450,1760652642188,-29025.58434434,0.0002868,2]
[391557452,1760652642199,-307.6442989,0.00028691,2]
[391557454,1760652642208,-374.0,0.00028736,2]
[391557456,1760652642223,-17283.7985369,0.0002874,3]
[391557458,1760652642232,-18072.8058348,0.0002874,3]
[391557459,1760652642242,-13077.34495728,0.0002875,2]
[391557461,1760652642252,-17283.7985369,0.0002875,3]
[391557463,1760652642262,-18072.8058348,0.0002875,3]
[391557465,1760652642272,-207.93580467,0.0002875,2]
[391557467,1760652642282,-4320.94963422,0.00028757,3]
[391557469,1760652642291,-28530.89389262,0.0002876,2]
[391557471,1760652642301,-6124.11696525,0.0002876,2]
[391557472,1760652642311,-2075.4197871,0.0002876,120]
[391557474,1760652642321,-540.19625249,0.00028773,5]
[391557476,1760652642330,-18072.8058348,0.00028784,3]
[391557478,1760652642342,-1054.28147047,0.00028794,10]
[391557480,1760652642353,-4320.94963422,0.00028802,3]
[391557481,1760652642363,-12962.8489027,0.00028802,3]
[391557483,1760652642372,-18072.8058348,0.00028803,3]
[391557485,1760652642383,-4320.94963422,0.00028812,3]
[391557487,1760652642393,-4320.94963422,0.00028812,3]
[391557489,1760652642402,-12962.8489027,0.00028814,3]
[391557491,1760652642413,-5269.14721479,0.00028821,2]
[391557493,1760652642424,-280.9,0.00028821,120]
[391557494,1760652642433,-523.12,0.00028821,10]
[391557496,1760652642444,-150.0,0.00028822,60]
[391557498,1760652642454,-150.74499895,0.00028822,60]
[391557500,1760652642463,-150.0,0.00028822,60]
[391557502,1760652642474,-150.0,0.00028822,60]
[391557504,1760652642483,-150.0,0.00028822,48]
[391557506,1760652642493,-500.0,0.00028822,120]
[391557508,1760652642503,-500.0,0.00028822,120]
[391557510,1760652642512,-500.0,0.00028822,120]
[391557511,1760652642522,-500.0,0.00028822,120]
[391557513,1760652642531,-500.0,0.00028822,120]
[391557515,1760652642540,-500.0,0.00028822,120]
[391557517,1760652642550,-500.0,0.00028822,120]
[391557519,1760652642559,-500.0,0.00028822,120]
[391557521,1760652642568,-500.0,0.00028822,120]
[391557523,1760652642577,-500.0,0.00028822,120]
[391557524,1760652642586,-409.0,0.00028822,120]
[391557526,1760652642596,-1092.0,0.00028822,60]
[391557528,1760652642605,-150.0,0.00028822,60]
[391557530,1760652642614,-150.0,0.00028822,60]
[391557532,1760652642624,-150.0,0.00028822,5]
[391557534,1760652642633,-150.0,0.00028822,60]
[391557536,1760652642643,-150.0,0.00028822,2]
[391557538,1760652642652,-150.0,0.00028822,2]
[391557540,1760652642662,-150.0,0.00028822,60]
[391557541,1760652642671,-150.0,0.00028822,60]
[391557543,1760652642681,-150.0,0.00028822,2]
[391557545,1760652642690,-150.0,0.00028822,60]
[391557547,1760652642699,-150.0,0.00028822,60]
[391557549,1760652642709,-150.0,0.00028822,60]
[391557551,1760652642720,-150.0,0.00028822,60]
[391557553,1760652642731,-150.0,0.00028822,60]
[391557555,1760652642740,-150.0,0.00028822,60]
[391557556,1760652642749,-150.0,0.00028822,60]
[391557558,1760652642759,-18072.8058348,0.00028822,3]
[391557560,1760652642768,-180.52922052,0.00028831,2]
[391557562,1760652642778,-25000.0,0.00028832,10]
[391557564,1760652642788,-160.45570024,0.0002887,2]
[391557566,1760652642798,-150.0,0.00028877,60]
[391557568,1760652642808,-150.0,0.00028877,60]
[391557570,1760652642817,-150.0,0.00028877,48]
[391557572,1760652642827,-1092.0,0.00028877,60]
[391557574,1760652642837,-150.0,0.00028877,60]
[391557577,1760652642846,-150.0,0.00028877,5]
[391557579,1760652642856,-150.0,0.00028877,60]
[391557582,1760652642866,-150.0,0.00028877,60]
[391557585,1760652642876,-166.32993521,0.00028881,2]
[391557587,1760652642885,-1000.0,0.00028889,2]
[391557589,1760652642895,-439.02374341,0.0002889,2]
[391557591,1760652642904,-788.89146728,0.000289,2]
[391557592,1760652642914,-18072.8058348,0.00028922,3]
[391557594,1760652642924,-200.0,0.00028932,60]
[391557596,1760652642934,-200.0,0.00028932,60]
[391557598,1760652642943,-1092.0,0.00028932,60]
[391557600,1760652642953,-200.0,0.00028932,60]
[391557602,1760652642963,-200.0,0.00028932,5]
[391557604,1760652642973,-150.0,0.00028932,60]
[391557606,1760652642983,-168.0,0.00028936,7]
[391557608,1760652642992,-161.65725691,0.0002894,2]
[391557612,1760652643001,-18072.8058348,0.0002896,3]
[391557615,1760652643011,-18072.8058348,0.00028966,3]
[391557618,1760652643020,-18072.8058348,0.00028969,3]
[391557621,1760652643030,-18072.8058348,0.00028979,3]
[391557625,1760652643040,-198800.864182,0.0002898,3]
[391557627,1760652643050,-2729.7,0.0002898,120]
[391557629,1760652643060,-108436.835009,0.0002898,3]
[391557631,1760652643070,-7487.74,0.00028981,10]
[391557633,1760652643080,-180.33258741,0.00028986,7]
[391557635,1760652643089,-1092.0,0.00028986,60]
[391557637,1760652643099,-150.0,0.00028986,60]
[391557640,1760652643108,-150.0,0.00028989,2]
[391557642,1760652643118,-152.782843,0.00028989,30]
[391557645,1760652643128,-151.0,0.00028989,30]
[391557648,1760652643137,-245.416362,0.00028989,30]
[391557650,1760652643146,-200.542752,0.00028989,30]
[391557652,1760652643156,-200.542752,0.00028989,30]
[391557654,1760652643165,-200.542752,0.00028989,30]
[391557656,1760652643174,-200.542752,0.00028989,30]
[391557657,1760652643183,-151.455873,0.00028989,30]
[391557658,1760652643193,-151.440638,0.00028989,30]
[391557659,1760652643203,-151.0,0.00028989,30]
[391557661,1760652643213,-151.0,0.00028989,30]
[391557663,1760652643223,-151.0,0.00028989,30]
[391557664,1760652643232,-151.0,0.00028989,30]
[391557665,1760652643242,-303.478001,0.00028989,30]
[391557666,1760652643251,-303.478001,0.00028989,30]
[391557667,1760652643261,-303.478001,0.00028989,30]
[391557668,1760652643270,-151.0,0.00028989,30]
[391557669,1760652643280,-303.478001,0.00028989,30]
[391557670,1760652643290,-152.68773,0.00028989,30]
[391557671,1760652643300,-151.997665,0.00028989,30]
[391557672,1760652643309,-151.476254,0.00028989,30]
[391557673,1760652643319,-206.18902,0.00028989,30]
[391557674,1760652643328,-206.18902,0.00028989,30]
[391557675,1760652643338,-151.0,0.00028989,30]
[391557676,1760652643352,-206.18902,0.00028989,30]
[391557677,1760652643362,-151.0,0.00028989,30]
[391557678,1760652643371,-206.18902,0.00028989,30]
[391557679,1760652643380,-176.806935,0.00028989,30]
[391557680,1760652643391,-151.0,0.00028989,30]
[391557682,1760652643401,-176.806935,0.00028989,30]
[391557684,1760652643410,-176.806935,0.00028989,30]
[391557686,1760652643422,-176.806935,0.00028989,30]
[391557688,1760652643432,-191.874591,0.00028989,30]
[391557690,1760652643442,-191.874591,0.00028989,30]
[391557691,1760652643452,-191.874591,0.00028989,30]
[391557692,1760652643461,-191.874591,0.00028989,30]
[391557693,1760652643471,-151.0,0.00028989,30]
[391557694,1760652643481,-419588.8100872,0.0002899,9]
[391557695,1760652643491,-179022.47723512,0.0002899,14]
[391557696,1760652643500,-46917.66654444,0.0002899,2]
[391557698,1760652643510,-151.0,0.0002899,30]
[391557699,1760652643520,-151.0,0.0002899,30]
[391557700,1760652643529,-151.0,0.0002899,30]
[391557701,1760652643539,-153.087027,0.0002899,30]
[391557702,1760652643549,-151.0,0.0002899,30]
[391557703,1760652643558,-151.0,0.0002899,30]
[391557705,1760652643568,-151.0,0.0002899,30]
[391557707,1760652643577,-151.0,0.0002899,30]
[391557708,1760652643586,-266.029318,0.0002899,30]
[391557709,1760652643595,-151.0,0.0002899,30]
[391557710,1760652643604,-151.0,0.0002899,30]
[391557711,1760652643614,-151.0,0.0002899,30]
[391557712,1760652643623,-151.0,0.0002899,30]
[391557713,1760652643632,-151.0,0.0002899,30]
[391557714,1760652643642,-209.689649,0.0002899,30]
[391557715,1760652643651,-209.689649,0.0002899,30]
[391557716,1760652643660,-209.689649,0.0002899,30]
[391557717,1760652643669,-209.689649,0.0002899,30]
[391557718,1760652643678,-151.0,0.0002899,30]
[391557719,1760652643688,-151.0,0.0002899,30]
[391557720,1760652643698,-151.0,0.0002899,30]
[391557721,1760652643709,-151.0,0.0002899,30]
[391557722,1760652643718,-151.0,0.0002899,30]
[391557723,1760652643728,-151.0,0.0002899,30]
[391557724,1760652643738,-151.0,0.0002899,30]
[391557725,1760652643747,-858.116865,0.0002899,30]
[391557726,1760652643758,-151.0,0.0002899,30]
[391557727,1760652643767,-858.116865,0.0002899,30]
[391557728,1760652643776,-858.116865,0.0002899,30]
[391557729,1760652643785,-858.116865,0.0002899,30]
[391557730,1760652643795,-572.797798,0.0002899,30]
[391557731,1760652643805,-572.797798,0.0002899,30]
[391557732,1760652643814,-572.797798,0.0002899,30]
[391557733,1760652643823,-572.797798,0.0002899,30]
[391557734,1760652643832,-151.0,0.0002899,15]
[391557735,1760652643841,-151.0,0.0002899,15]
[391557736,1760652643851,-151.0,0.0002899,15]
[391557737,1760652643860,-151.0,0.0002899,30]
[391557738,1760652643870,-151.0,0.0002899,30]
[391557739,1760652643879,-151.0,0.0002899,30]
[391557740,1760652643889,-151.0,0.0002899,30]
[391557741,1760652643899,-151.0,0.0002899,30]
[391557742,1760652643909,-151.0,0.0002899,30]
[391557743,1760652643919,-151.0,0.0002899,30]
[391557744,1760652643928,-151.0,0.0002899,30]
[391557745,1760652643938,-151.0,0.0002899,30]
[391557746,1760652643947,-151.0,0.0002899,30]
[391557747,1760652643956,-151.0,0.0002899,30]
[391557748,1760652643966,-151.0,0.0002899,30]
[391557749,1760652643975,-151.0,0.0002899,30]
[391557750,1760652643984,-151.0,0.0002899,30]
[391557751,1760652643993,-151.0,0.0002899,30]
[391557752,1760652644002,-703.879859,0.0002899,30]
[391557753,1760652644011,-703.879859,0.0002899,30]
[391557754,1760652644021,-703.879859,0.0002899,30]
[391557755,1760652644030,-151.0,0.0002899,30]
[391557756,1760652644039,-703.879859,0.0002899,30]
[391557757,1760652644048,-151.991931,0.0002899,30]
[391557758,1760652644057,-151.0,0.0002899,30]
[391557759,1760652644067,-151.0,0.0002899,30]
[391557760,1760652644076,-151.0,0.0002899,30]
[391557761,1760652644086,-151.0,0.0002899,30]
[391557762,1760652644095,-229.755487,0.0002899,30]
[391557763,1760652644105,-151.0,0.0002899,14]
[391557764,1760652644114,-151.0,0.0002899,30]
[391557765,1760652644125,-151.0,0.0002899,30]
[391557766,1760652644135,-293.641501,0.0002899,30]
[391557767,1760652644144,-151.0,0.0002899,30]
[391557768,1760652644154,-151.0,0.0002899,30]
[391557769,1760652644163,-151.0,0.0002899,30]
[391557770,1760652644173,-270.032704,0.0002899,30]
[391557771,1760652644182,-159.980502,0.0002899,30]
[391557772,1760652644192,-159.980502,0.0002899,30]
[391557773,1760652644202,-159.980502,0.0002899,30]
[391557774,1760652644211,-159.980502,0.0002899,30]
[391557775,1760652644221,-236.398538,0.0002899,30]
[391557776,1760652644231,-152.025055,0.0002899,30]
[391557777,1760652644241,-236.398538,0.0002899,30]
[391557778,1760652644251,-236.398538,0.0002899,30]
[391557779,1760652644260,-236.398538,0.0002899,30]
[391557780,1760652644270,-170.374139,0.0002899,30]
[391557781,1760652644280,-151.0,0.0002899,30]
[391557782,1760652644290,-151.0,0.0002899,30]
[391557783,1760652644299,-151.0,0.0002899,30]
[391557784,1760652644309,-151.0,0.0002899,30]
[391557785,1760652644319,-151.0,0.0002899,30]
[391557786,1760652644328,-151.0,0.0002899,30]
[391557787,1760652644338,-151.0,0.0002899,30]
[391557788,1760652644351,-151.0,0.0002899,30]
[391557789,1760652644361,-151.0,0.0002899,30]
[391557790,1760652644370,-151.0,0.0002899,30]
[391557791,1760652644379,-151.0,0.0002899,30]
[391557792,1760652644390,-151.0,0.0002899,30]
[391557793,1760652644399,-151.0,0.0002899,30]
[391557794,1760652644408,-151.0,0.0002899,30]
[391557795,1760652644420,-151.0,0.0002899,30]
[391557796,1760652644429,-151.0,0.0002899,30]
[391557797,1760652644438,-151.0,0.0002899,30]
[391557798,1760652644448,-229.222788,0.0002899,30]
[391557799,1760652644458,-759.346239,0.0002899,30]
[391557800,1760652644468,-151.0,0.0002899,30]
[391557801,1760652644478,-151.0,0.0002899,30]
[391557802,1760652644487,-759.346239,0.0002899,30]
[391557803,1760652644496,-151.0,0.0002899,30]
[391557804,1760652644505,-151.0,0.0002899,30]
[391557805,1760652644514,-151.0,0.0002899,30]
[391557806,1760652644523,-759.346239,0.0002899,30]
[391557807,1760652644532,-220.536353,0.0002899,30]
[391557808,1760652644541,-759.346239,0.0002899,30]
[391557809,1760652644550,-151.0,0.0002899,30]
[391557810,1760652644559,-151.0,0.0002899,30]
[391557811,1760652644569,-151.0,0.0002899,30]
[391557812,1760652644578,-151.0,0.0002899,30]
[391557813,1760652644587,-151.0,0.0002899,30]
[391557814,1760652644596,-151.0,0.0002899,30]
[391557815,1760652644605,-151.0,0.0002899,30]
[391557816,1760652644615,-151.0,0.0002899,30]
[391557817,1760652644624,-151.0,0.0002899,10]
[391557818,1760652644633,-151.0,0.0002899,30]
[391557819,1760652644643,-151.0,0.0002899,30]
[391557820,1760652644652,-151.0,0.0002899,30]
[391557821,1760652644661,-151.0,0.0002899,30]
[391557822,1760652644671,-151.0,0.0002899,30]
[391557823,1760652644680,-194.438803,0.0002899,30]
[391557824,1760652644690,-194.438803,0.0002899,30]
[391557825,1760652644978,-151.0,0.0002899,30]
[391557826,1760652644988,-194.438803,0.0002899,30]
[391557827,1760652644997,-194.438803,0.0002899,30]
[391557828,1760652645007,-151.0,0.0002899,30]
[391557829,1760652645017,-151.0,0.0002899,30]
[391557830,1760652645026,-151.0,0.0002899,30]
[391557831,1760652645036,-151.0,0.0002899,30]
[391557832,1760652645045,-284.672807,0.0002899,30]
[391557833,1760652645055,-151.0,0.0002899,30]
[391557834,1760652645064,-151.0,0.0002899,30]
[391557835,1760652645073,-151.0,0.0002899,30]
[391557836,1760652645082,-151.0,0.0002899,30]
[391557837,1760652645092,-159.738078,0.0002899,30]
[391557838,1760652645102,-661.653996,0.0002899,30]
[391557839,1760652645111,-151.0,0.0002899,30]
[391557840,1760652645121,-151.0,0.0002899,30]
[391557841,1760652645131,-159.738078,0.0002899,30]
[391557842,1760652645140,-661.653996,0.0002899,30]
[391557843,1760652645150,-159.738078,0.0002899,30]
[391557844,1760652645160,-661.653996,0.0002899,30]
[391557845,1760652645169,-661.653996,0.0002899,30]
[391557846,1760652645179,-151.0,0.0002899,30]
[391557847,1760652645188,-159.738078,0.0002899,30]
[391557848,1760652645198,-151.0,0.0002899,30]
[391557849,1760652645207,-168.0,0.00028998,2]
[391557850,1760652645217,-8736.98463272,0.00028999,2]
[391557851,1760652645227,-44562.926118,0.00029,2]
[391557852,1760652645236,-1502.96375966,0.00029,120]
[391557853,1760652645246,-18734.16,0.00029,7]
[391557854,1760652645256,-40000.0,0.00029,10]
[391557855,1760652645265,-3978.17,0.00029,2]
[391557856,1760652645274,-3968.39,0.00029,7]
[391557857,1760652645284,-1000.0,0.00029,2]
[391557858,1760652645294,-1500.0,0.00029,2]
[391557859,1760652645304,-2729.7,0.00029007,120]
[391557860,1760652645314,-170.10593366,0.00029014,2]
[391557861,1760652645323,-507.77934988,0.00029019,30]
[391557862,1760652645333,-2729.7,0.00029034,120]
[391557863,1760652645346,-1092.0,0.00029041,60]
[391557864,1760652645356,-2729.7,0.00029062,120]
[391557865,1760652645365,-374.0,0.00029083,2]
[391557866,1760652645375,-2729.7,0.00029089,120]
[391557867,1760652645387,-307.6442989,0.00029089,2]
[391557868,1760652645396,-754.21411574,0.0002909,2]
[391557869,1760652645406,-523.12,0.00029095,11]
[391557870,1760652645417,-1092.0,0.00029096,60]
[391557871,1760652645426,-168.0,0.00029096,2]
[391557872,1760652645436,-2729.7,0.00029116,120]
[391557873,1760652645446,-5269.14721479,0.00029131,2]
[391557874,1760652645456,-2729.7,0.00029144,120]
[391557875,1760652645465,-170.10593366,0.00029151,2]
[391557876,1760652645476,-1092.0,0.00029151,60]
[391557877,1760652645486,-168.0,0.00029167,2]
[391557878,1760652645496,-2729.7,0.00029171,120]
[391557879,1760652645505,-150.0,0.00029186,20]
[391557880,1760652645515,-439.02374335,0.00029187,2]
[391557881,1760652645525,-500.0,0.00029189,120]
[391557882,1760652645534,-2000.0,0.00029189,120]
[391557883,1760652645543,-500.0,0.00029189,120]
[391557884,1760652645552,-500.0,0.00029189,120]
[391557885,1760652645562,-2729.7,0.00029199,120]
[391557886,1760652645571,-1092.0,0.00029206,60]
[391557887,1760652645581,-1000.0,0.00029208,2]
[391557888,1760652645591,-700.0,0.00029209,7]
[391557889,1760652645600,-500.0,0.00029209,7]
[391557890,1760652645610,-500.0,0.00029209,7]
[391557891,1760652645619,-2729.7,0.00029226,120]
[391557892,1760652645629,-206.18902,0.00029232,30]
[391557893,1760652645638,-206.18902,0.00029232,30]
[391557894,1760652645648,-151.0,0.00029232,30]
[391557895,1760652645657,-206.18902,0.00029232,30]
[391557896,1760652645666,-206.18902,0.00029232,30]
[391557897,1760652645676,-176.806935,0.00029232,30]
[391557898,1760652645685,-151.0,0.00029232,30]
[391557899,1760652645694,-176.806935,0.00029232,30]
[391557900,1760652645703,-176.806935,0.00029232,30]
[391557901,1760652645712,-176.806935,0.00029232,30]
[391557902,1760652645724,-191.874591,0.00029232,30]
[391557903,1760652645734,-191.874591,0.00029232,30]
[391557904,1760652645743,-191.874591,0.00029232,30]
[391557905,1760652645753,-191.874591,0.00029232,30]
[391557906,1760652645762,-151.0,0.00029232,30]
[391557907,1760652645772,-1373.81,0.00029237,2]
[391557908,1760652645781,-2729.7,0.00029253,120]
[391557909,1760652645791,-170.10593366,0.0002926,2]
[391557910,1760652645800,-1092.0,0.0002926,60]
[391557911,1760652645810,-500.0,0.00029272,15]
[391557912,1760652645819,-500.0,0.00029272,15]
[391557913,1760652645828,-500.0,0.00029272,15]
[391557914,1760652645838,-2729.7,0.00029281,120]
[391557915,1760652645847,-195.71279344,0.00029285,2]
[391557916,1760652645856,-151.0,0.00029287,30]
[391557917,1760652645865,-200.542752,0.00029287,30]
[391557918,1760652645874,-200.542752,0.00029287,30]
[391557919,1760652645883,-200.542752,0.00029287,30]
[391557920,1760652645893,-200.542752,0.00029287,30]
[391557921,1760652645902,-151.0,0.00029287,30]
[391557922,1760652645911,-151.0,0.00029287,30]
[391557923,1760652645920,-186.831476,0.00029287,30]
[391557924,1760652645930,-303.478001,0.00029287,30]